Department family,Entity,Date,Expense type,Expense area,Supplier,Transaction number,Amount,VAT registration number
Department of Health,University Hospitals of Morecambe Bay NHS Foundation Trust,1-Nov-11,Internal Audit Fees,Corporate,CALDERSTONES PARTNERSHIP NHS FT,769099,36504,
Department of Health,University Hospitals of Morecambe Bay NHS Foundation Trust,1-Nov-11,NHS Product Sales,Trust Wide,NHS SUPPLY CHAIN,771390,148667.31,
Department of Health,University Hospitals of Morecambe Bay NHS Foundation Trust,1-Nov-11,Laboratory Tests,Pathology,THE LEEDS TEACHING HOSPITALS NHS TRUST,772254,32020,
Department of Health,University Hospitals of Morecambe Bay NHS Foundation Trust,1-Nov-11,Rates,Estates & Facilities,LANCASTER CITY COUNCIL,771570,55857,
Department of Health,University Hospitals of Morecambe Bay NHS Foundation Trust,1-Nov-11,Rates,Estates & Facilities,BOROUGH OF BARROW-IN-FURNESS,771610,64846,
Department of Health,University Hospitals of Morecambe Bay NHS Foundation Trust,1-Nov-11,Rates,Estates & Facilities,SOUTH LAKELAND DISTRICT COUNCIL,771645,38320,
Department of Health,University Hospitals of Morecambe Bay NHS Foundation Trust,1-Nov-11,Agency Medical Staff,Trust Wide,DRC LOCUMS LIMITED,773407,93025.44,
Department of Health,University Hospitals of Morecambe Bay NHS Foundation Trust,1-Nov-11,Agency Medical Staff,Trust Wide,DRC LOCUMS LIMITED,773579,84000,
Department of Health,University Hospitals of Morecambe Bay NHS Foundation Trust,1-Nov-11,Medical Equipment,Theatres,GE HEALTHCARE CLINICAL SYSTEMS (UK) LTD,768453,128528.4,
Department of Health,University Hospitals of Morecambe Bay NHS Foundation Trust,1-Nov-11,Drugs,Pharmacy,NOVARTIS PHARMACEUTICALS UK LTD,767977,28945.66,
Department of Health,University Hospitals of Morecambe Bay NHS Foundation Trust,1-Nov-11,Building Services,Capital Services,PININGTON CONSTRUCTION,772164,26308.89,
Department of Health,University Hospitals of Morecambe Bay NHS Foundation Trust,1-Nov-11,Laundry services,Estates & Facilities,SUNLIGHT SERVICE GROUP LTD,767643,38566.36,
Department of Health,University Hospitals of Morecambe Bay NHS Foundation Trust,1-Nov-11,Laundry services,Estates & Facilities,SUNLIGHT SERVICE GROUP LTD,767667,22694.36,
Department of Health,University Hospitals of Morecambe Bay NHS Foundation Trust,8-Nov-11,Blood & Blood components contract,Core Clinical,NHS BLOOD & TRANSPLANT,773609,57130.06,
Department of Health,University Hospitals of Morecambe Bay NHS Foundation Trust,8-Nov-11,Blood & Blood components contract,Core Clinical,NHS BLOOD & TRANSPLANT,773611,70319.97,
Department of Health,University Hospitals of Morecambe Bay NHS Foundation Trust,8-Nov-11,GP Trainee recharge,Trust Wide,NHS NORTH LANCASHIRE,769885,109141.1,
Department of Health,University Hospitals of Morecambe Bay NHS Foundation Trust,8-Nov-11,NHS Product Sales,Trust Wide,NHS SUPPLY CHAIN,773403,139863.51,
Department of Health,University Hospitals of Morecambe Bay NHS Foundation Trust,8-Nov-11,Recharge Specialist Registrars,Trust Wide,THE PENNINE ACUTE HOSPITALS NHS TRUST,773925,100000,
Department of Health,University Hospitals of Morecambe Bay NHS Foundation Trust,8-Nov-11,Recharge Specialist Registrars,Trust Wide,THE PENNINE ACUTE HOSPITALS NHS TRUST,773927,350000,
Department of Health,University Hospitals of Morecambe Bay NHS Foundation Trust,8-Nov-11,Engineering Services,Capital Services,EDWARD DEWHURST LTD,770950,24906.51,
Department of Health,University Hospitals of Morecambe Bay NHS Foundation Trust,8-Nov-11,Medical Equipment,Theatres,ESCHMANN EQUIPMENT,769892,31163.16,
Department of Health,University Hospitals of Morecambe Bay NHS Foundation Trust,8-Nov-11,Medical Equipment,Endoscopy,OLYMPUS KEYMED,769897,54173.13,
Department of Health,University Hospitals of Morecambe Bay NHS Foundation Trust,8-Nov-11,Drugs,Pharmacy,ROCHE PRODUCTS LTD,770509,46798.5,
Department of Health,University Hospitals of Morecambe Bay NHS Foundation Trust,8-Nov-11,Drugs,Pharmacy,ROCHE PRODUCTS LTD,770510,48894.3,
Department of Health,University Hospitals of Morecambe Bay NHS Foundation Trust,8-Nov-11,Drugs,Pharmacy,ROCHE PRODUCTS LTD,770511,37551,
Department of Health,University Hospitals of Morecambe Bay NHS Foundation Trust,15-Nov-11,Prescription Recharges,Pharmacy,NHS BUSINESS SERVICES AUTHORITY,771621,331849.68,
Department of Health,University Hospitals of Morecambe Bay NHS Foundation Trust,15-Nov-11,GP Trainee recharge,Trust Wide,NHS NORTH LANCASHIRE,775941,100779.8,
Department of Health,University Hospitals of Morecambe Bay NHS Foundation Trust,15-Nov-11,System Managed Service,Information Technology,CSC COMPUTER SCIENCES LTD,767410,53523,
Department of Health,University Hospitals of Morecambe Bay NHS Foundation Trust,15-Nov-11,System Managed Service,Information Technology,CSC COMPUTER SCIENCES LTD,773284,53523,
Department of Health,University Hospitals of Morecambe Bay NHS Foundation Trust,15-Nov-11,Engineering Services,Capital Services,EDWARD DEWHURST LTD,772135,30145.28,
Department of Health,University Hospitals of Morecambe Bay NHS Foundation Trust,15-Nov-11,Drugs,Pharmacy,ROCHE PRODUCTS LTD,772027,40550.28,
Department of Health,University Hospitals of Morecambe Bay NHS Foundation Trust,23-Nov-11,NHS Product Sales,Trust Wide,NHS SUPPLY CHAIN,774874,130509.46,
Department of Health,University Hospitals of Morecambe Bay NHS Foundation Trust,23-Nov-11,NHS Product Sales,Trust Wide,NHS SUPPLY CHAIN,776521,135536.74,
Department of Health,University Hospitals of Morecambe Bay NHS Foundation Trust,23-Nov-11,Medical Equipment,Theatres,DANTEC DYNAMICS LTD,773648,37864.8,
Department of Health,University Hospitals of Morecambe Bay NHS Foundation Trust,23-Nov-11,Medical Equipment,ICU,MAQUET LTD,777752,119169.46,
Department of Health,University Hospitals of Morecambe Bay NHS Foundation Trust,23-Nov-11,Electricity,Estates & Facilities,NPOWER,777822,55171.07,
Department of Health,University Hospitals of Morecambe Bay NHS Foundation Trust,23-Nov-11,Electricity,Estates & Facilities,NPOWER,777824,26003.78,
Department of Health,University Hospitals of Morecambe Bay NHS Foundation Trust,23-Nov-11,Electricity,Estates & Facilities,NPOWER,777827,52915.31,
Department of Health,University Hospitals of Morecambe Bay NHS Foundation Trust,28-Nov-11,NHS Product Sales,Trust Wide,NHS SUPPLY CHAIN,778105,138995.62,
Department of Health,University Hospitals of Morecambe Bay NHS Foundation Trust,28-Nov-11,Managed Service Contract,Pathology,BECKMAN COULTER UK LTD,775389,76761.96,
Department of Health,University Hospitals of Morecambe Bay NHS Foundation Trust,28-Nov-11,Managed Service Contract,Pathology,BECKMAN COULTER UK LTD,775390,61848.77,
Department of Health,University Hospitals of Morecambe Bay NHS Foundation Trust,28-Nov-11,Pacemakers,Cardiac Lab,BOSTON SCIENTIFIC LTD,774011,40521.12,
Department of Health,University Hospitals of Morecambe Bay NHS Foundation Trust,28-Nov-11,Orthotics Service,Trust Wide,CRISPIN ORTHOTICS LTD,774308,27223.28,
Department of Health,University Hospitals of Morecambe Bay NHS Foundation Trust,28-Nov-11,Gas,Estates & Facilities,E.ON ENERGY,779004,31185.94,
Department of Health,University Hospitals of Morecambe Bay NHS Foundation Trust,28-Nov-11,Gas,Estates & Facilities,E.ON ENERGY,779006,43195.64,
Department of Health,University Hospitals of Morecambe Bay NHS Foundation Trust,28-Nov-11,Engineering Services,Capital Services,EDWARD DEWHURST LTD,775398,210587.95,
Department of Health,University Hospitals of Morecambe Bay NHS Foundation Trust,28-Nov-11,Medical Equipment,ENT,PENTAX UK LTD,774940,29994,
Department of Health,University Hospitals of Morecambe Bay NHS Foundation Trust,28-Nov-11,Drugs,Pharmacy,ROCHE PRODUCTS LTD,774732,29455.68,
Department of Health,University Hospitals of Morecambe Bay NHS Foundation Trust,28-Nov-11,Laundry services,Estates & Facilities,SUNLIGHT SERVICE GROUP LTD,773920,31714.54,
